fUSD/lending_fUSD_20240907
["ID","MTS","AMOUNT","RATE_DAILY","PERIOD"]
[337520300,1725733674719,-1000000.0,0.00056,120]
[337520301,1725733674743,-3361.36,0.00056164,120]
[337520302,1725733674766,-2197.45368271,0.00056438,120]
[337520303,1725733674794,-500000.0,0.0005644,120]
[337520304,1725733674818,-20000.0,0.0005654,30]
[337520305,1725733674843,-151.0,0.00056849,120]
[337520306,1725733674868,-1000.0,0.00056999,120]
[337520307,1725733674892,-1000.0,0.00057,120]
[337520308,1725733674917,-1000000.0,0.00057,120]
[337520309,1725733674941,-150.0,0.0005725,40]
[337520310,1725733674965,-2000.0,0.000573,30]
[337520311,1725733674990,-3361.36,0.00057534,120]
[337520312,1725733675035,500.0,0.00044109,120]
[337520313,1725733675063,500.0,0.00044383,120]
[337520314,1725733675091,841.21652078,0.00041078,120]
[337520315,1725733675119,1802.6571476,0.00041085,120]
[337520316,1725733675147,500.0,0.00044657,120]
[337520317,1725733675175,1074.67820764,0.0004,120]
[337520318,1725733675206,500.0,0.00044931,120]
[337520319,1725733675287,369.24311333,0.00045205,120]
[337520320,1725733675786,1596.80202983,0.00048,120]
[337520321,1725733679485,3476.36249613,0.00041,120]
[337520322,1725733679745,150.0,0.00041,120]
[337520323,1725733680200,600.0,0.00039,120]
[337520324,1725733680251,422.22996907,0.00038,120]
[337520325,1725733680435,1487.43874493,0.0004,120]
[337520326,1725733682062,3143.90581396,0.00052,120]
[337520327,1725733683342,15854.2321,0.00010999,2]
[337520328,1725733683366,12997.06808878,0.00010999,2]
[337520329,1725733683400,543.93026223,0.0004,120]
[337520330,1725733683501,880.68103129,0.00045,120]
[337520331,1725733684595,1479.2986013,0.00042,120]
[337520332,1725733687066,155.54190469,0.00036,120]
[337520333,1725733687193,271.403,0.00056154,30]
[337520334,1725733687344,1100.0,0.00046328,30]
[337520335,1725733687453,600.0,0.00039,120]
[337520336,1725733688131,569.75905496,0.000394,30]
[337520337,1725733688577,422.22996907,0.0004,120]
[337520338,1725733688976,1100.0,0.00046876,30]
[337520339,1725733690582,1100.0,0.00047424,30]
[337520340,1725733691143,151.0,0.0003,120]
[337520341,1725733691372,351.75306242,0.000478,120]
[337520342,1725733691740,151.0,0.00036658,120]
[337520343,1725733692198,1100.0,0.00047972,30]
[337520344,1725733692284,3600.0,0.00055,120]
[337520345,1725733692316,151.0,0.00043315,120]
[337520346,1725733692636,202.6148144,0.000442,120]
[337520347,1725733692779,1591.03781395,0.00039,120]
[337520348,1725733692883,161.08901195,0.00033,120]
[337520349,1725733693065,151.0,0.00049973,120]
[337520350,1725733693480,151.0,0.0005663,120]
[337520351,1725733693780,500.0,0.00043835,120]
[337520352,1725733693815,1100.0,0.00049068,30]
[337520353,1725733694042,500.0,0.00044109,120]
[337520354,1725733694233,283.44936007,0.00045,40]
[337520355,1725733694326,500.0,0.00044383,120]
[337520356,1725733694587,500.0,0.00044657,120]
[337520357,1725733694849,629.94842115,0.00044931,120]
[337520358,1725733694926,600.0,0.00039,120]
[337520359,1725733695383,1100.0,0.00050164,90]
[337520360,1725733695781,156.9084,0.000465,30]
[337520361,1725733696232,458.93483462,0.000414,120]
[337520362,1725733696265,1136.22869416,0.000489,120]
[337520363,1725733696888,844.45993814,0.00043,120]
[337520364,1725733696956,1100.0,0.00050712,90]
[337520365,1725733698353,278.832122,0.00038,30]
[337520366,1725733698515,1100.0,0.0005126,90]
[337520370,1725733713983,742.2,0.0001175,2]
[337520372,1725733729492,299.88508626,0.00031258,120]
[337520385,1725733803342,413.38,0.00027,120]
[337520389,1725733831990,-183.37789928,0.00013488,2]
[337520391,1725733832002,-150.0,0.00013699,2]
[337520393,1725733832013,-300.0,0.00013704,2]
[337520395,1725733832024,-2214.65988789,0.00013705,2]
[337520400,1725733832471,-800.0,0.00013705,2]
[337520418,1725733837981,-354.61918759,0.00013705,2]
[337520485,1725733840061,-1175.375,0.00013705,2]
[337520509,1725733843218,-491.8592599,0.00013705,2]
[337520511,1725733843318,-5149.13413065,0.00013705,2]
[337520512,1725733843330,-782.23536836,0.00013705,2]
[337520514,1725733845061,485.56446443,0.00031474,120]
[337522007,1725734003866,2091.973392,0.000255,120]
[337522008,1725734006883,507.782689,0.00026,120]
[337522009,1725734011739,500.0,0.00026024,120]
[337522010,1725734060464,946.0,0.00031474,30]
[337522011,1725734151311,150.0,0.00013,2]
[337522026,1725734215895,810.3,0.00011704,2]
[337522027,1725734248377,750.0,0.00011,2]
[337522028,1725734249600,800.0,0.00013,2]
[337522029,1725734265429,193.0,0.00032232,30]
[337522030,1725734273700,354.04,0.00010959,2]
[337522031,1725734316846,1000.0,0.00032232,30]
[337522032,1725734317383,1000.0,0.00032232,30]
[337522033,1725734317977,1000.0,0.00032232,30]
[337522034,1725734318544,1000.0,0.00032232,30]
[337522035,1725734319107,1000.0,0.00032232,30]
[337522036,1725734319714,1000.0,0.00032232,30]
[337522037,1725734320289,1000.0,0.00032232,30]
[337522038,1725734320978,1000.0,0.00032232,30]
[337522039,1725734321550,1000.0,0.00032232,30]
[337522040,1725734322144,1000.0,0.00032232,30]
[337522041,1725734322714,1000.0,0.00032232,30]
[337522042,1725734323295,1000.0,0.00032232,30]
[337522043,1725734324320,366.19472738,0.00032232,30]
[337522044,1725734606508,500.0,0.00025616,120]
[337522045,1725734662636,1040.0,0.0003224,30]
[337522046,1725734709822,769.78,0.00011457,2]
[337522058,1725735032124,-723.26884859,0.00013275,2]
[337522059,1725735032195,-484.32,0.00013275,2]
[337522060,1725735032207,-503.022718,0.00013275,2]
[337522061,1725735032220,-779.48363341,0.00013275,2]
[337522062,1725735032231,-99.87989853,0.00013299,2]
[337522063,1725735032244,-150.12010147,0.00013299,2]
[337522064,1725735032253,-180.97641427,0.0001331,2]
[337522065,1725735032262,-23900.0,0.00013322,2]
[337522066,1725735032272,-250.0,0.00013374,2]
[337522067,1725735032281,-620.02,0.00013389,2]
[337522068,1725735032290,-222.53,0.0001341,2]
[337522069,1725735032299,-2000.0,0.0001344,2]
[337522070,1725735032309,-150.0,0.00013488,2]
[337522071,1725735032319,-188.63,0.00013585,2]
[337522072,1725735032330,-201.0,0.00013599,2]
[337522073,1725735032341,-150.0,0.00013644,2]
[337522080,1725735032508,-1000.0,0.00013659,2]
[337522082,1725735032518,-166.86,0.00013699,2]
[337522084,1725735032527,-150.0,0.00013699,2]
[337522086,1725735032537,-769.78,0.00013721,2]
[337522088,1725735032546,-174.68,0.00013732,2]
[337522090,1725735032556,-299.99,0.00013746,2]
[337522092,1725735032566,-600.0,0.000139,5]
[337522094,1725735032575,-1200.0,0.00014,5]
[337522096,1725735032584,-150.0,0.00014059,2]
[337522098,1725735032594,-1900.0,0.000141,5]
[337522100,1725735032603,-2500.0,0.000142,5]
[337522102,1725735032613,-1000.0,0.000143,2]
[337522104,1725735032623,-3100.0,0.000143,5]
[337522106,1725735032632,-395.373821,0.0001438,2]
[337522108,1725735032641,-247.497072,0.0001438,2]
[337522110,1725735032650,-166.435682,0.0001438,2]
[337522112,1725735032660,-1147.0,0.000144,2]
[337522113,1725735032669,-600.0,0.000144,5]
[337522114,1725735032679,-150.0,0.0001442,2]
[337522115,1725735032688,-600.0,0.000145,5]
[337522116,1725735032698,-150.0,0.00014503,2]
[337522117,1725735032707,-1114.52,0.00014504,2]
[337522118,1725735032717,-28400.72,0.00014504,2]
[337522119,1725735032727,-1175.37,0.00014504,2]
[337522120,1725735032736,-395.373821,0.0001456,2]
[337522121,1725735032746,-260.5687,0.00014574,2]
[337522122,1725735032755,-4044.91967454,0.00014574,2]
[337522123,1725735032765,-4389.6255,0.00014584,2]
[337522124,1725735032774,-12061.7949,0.00014584,2]
[337522125,1725735032784,-675.1766,0.00014584,2]
[337522126,1725735032794,-3256.0601,0.00014584,2]
[337522127,1725735032804,-213.9468,0.00014584,2]
[337522128,1725735032814,-160.8312333,0.00014594,2]
[337522129,1725735032823,-729.29610125,0.00014594,2]
[337522130,1725735032832,-318.11117622,0.00014594,2]
[337522131,1725735032842,-150.0,0.000146,2]
[337522132,1725735032852,-600.0,0.000146,5]
[337522133,1725735032861,-729.29610123,0.00014628,2]
[337522134,1725735032871,-729.29610123,0.00014662,2]
[337522135,1725735032880,-318.11117619,0.00014671,2]
[337522136,1725735032890,-500.0,0.00014675,2]
[337522137,1725735032900,-200.0,0.00014675,2]
[337522138,1725735032909,-500.0,0.00014676,2]
[337522139,1725735032919,-500.0,0.00014676,2]
[337522140,1725735032928,-200.0,0.00014676,2]
[337522141,1725735032937,-13722.49559684,0.00014684,2]
[337522142,1725735032949,-8868.9113244,0.00014684,2]
[337522143,1725735032970,-1346.50221221,0.00014684,2]
[337522144,1725735032981,-490.46366303,0.00014684,2]
[337522145,1725735032992,-697.89036063,0.00014684,2]
[337522146,1725735033004,-1097.34227907,0.00014684,2]
[337522147,1725735033116,-4309.13698492,0.00014684,2]
[337522148,1725735033128,-3172.38668386,0.00014684,2]
[337522149,1725735033142,-1332.63115809,0.00014684,2]
[337522150,1725735033153,-1786.71591369,0.00014684,2]
[337522155,1725735038188,-583.24175766,0.00013536,2]
[337522156,1725735038199,-486.78824234,0.00013536,2]
[337522157,1725735038209,-10643.14295766,0.00014684,2]
[337522158,1725735038220,-1503.10643675,0.00014684,2]
[337522159,1725735038231,-421.78588728,0.00014684,2]
[337522160,1725735038334,-11051.51092982,0.00014684,2]
[337522161,1725735038381,-2709.48663959,0.00014684,2]
[337522162,1725735038392,-425.4,0.00014684,2]
[337522163,1725735038426,-2364.01451426,0.00014684,2]
[337522164,1725735038438,-724.97184001,0.00014684,2]
[337522204,1725735040314,-10264.97909603,0.00014684,2]
[337522205,1725735040327,-1264.56601225,0.00014684,2]
[337522206,1725735040337,-3490.38491819,0.00014684,2]
[337522207,1725735040379,-259478.44549142,0.00014684,2]
[337522208,1725735040391,-1000.0,0.00014694,2]
[337522209,1725735040400,-508.45317657,0.00014694,2]
[337522210,1725735040410,-159.85984811,0.00014694,2]
[337522211,1725735040420,-1268.59370204,0.00014694,2]
[337522212,1725735040429,-729.29610123,0.00014696,2]
[337522213,1725735040439,-600.0,0.000147,5]
[337522214,1725735040449,-729.29610123,0.0001473,2]
[337522215,1725735040459,-395.373821,0.0001474,2]
[337522216,1725735040468,-508.45317653,0.00014746,2]
[337522217,1725735040477,-160.8312333,0.00014747,2]
[337522218,1725735040487,-318.11117619,0.00014747,2]
[337522219,1725735040495,-163.46,0.00014764,2]
[337522220,1725735040505,-729.29610123,0.00014764,2]
[337522221,1725735040514,-19916.4749415,0.0001477,2]
[337522222,1725735040523,-500.0,0.00014773,2]
[337522223,1725735040532,-23899.7699298,0.00014774,2]
[337522224,1725735040541,-166.42136765,0.00014774,2]
[337522225,1725735040550,-41247.70676,0.0001478,2]
[337522226,1725735040560,-5987.35430173,0.0001478,2]
[337522227,1725735040569,-150.0,0.0001478,2]
[337522228,1725735040579,-159331.799532,0.00014784,2]
[337522229,1725735040588,-587.0,0.00014794,2]
[337522230,1725735040598,-500.0,0.00014794,2]
[337522231,1725735040607,-500.0,0.00014794,2]
[337522232,1725735040617,-500.0,0.00014794,2]
[337522233,1725735040780,-200.94480576,0.00014794,2]
[337522234,1725735040790,-509.69965798,0.00014794,2]
[337522235,1725735040801,-504.28967703,0.00014794,2]
[337522236,1725735040811,-500.0,0.00014794,2]
[337522237,1725735040821,-500.0,0.00014794,2]
[337522238,1725735040831,-500.0,0.00014794,2]
[337522239,1725735040842,-500.0,0.00014794,2]
[337522240,1725735040851,-500.0,0.00014794,2]
[337522241,1725735040860,-500.0,0.00014794,2]
[337522242,1725735040870,-500.0,0.00014794,2]
[337522243,1725735040879,-500.0,0.00014794,2]
[337522244,1725735040888,-500.0,0.00014794,2]
[337522246,1725735040898,-500.0,0.00014794,2]
[337522248,1725735040909,-500.0,0.00014794,2]
[337522250,1725735040919,-500.0,0.00014794,2]
[337522251,1725735040929,-500.0,0.00014794,2]
[337522252,1725735040938,-500.0,0.00014794,2]
[337522253,1725735040948,-500.0,0.00014794,2]
[337522254,1725735040957,-500.0,0.00014794,2]
[337522255,1725735040967,-500.0,0.00014794,2]
[337522256,1725735040977,-500.0,0.00014794,2]
[337522257,1725735040988,-500.0,0.00014794,2]
[337522258,1725735040997,-500.0,0.00014794,2]
[337522259,1725735041006,-500.0,0.00014794,2]
[337522260,1725735041016,-500.0,0.00014794,2]
[337522261,1725735041027,-500.0,0.00014794,2]
[337522262,1725735041037,-500.0,0.00014794,2]
[337522263,1725735041047,-500.0,0.00014794,2]
[337522264,1725735041057,-500.0,0.00014794,2]
[337522265,1725735041067,-500.0,0.00014794,2]
[337522266,1725735041076,-500.0,0.00014794,2]
[337522267,1725735041085,-578.42773042,0.00014794,2]
[337522268,1725735041097,-500.0,0.00014794,2]
[337522269,1725735041106,-500.0,0.00014794,2]
[337522270,1725735041116,-503.61062326,0.00014794,2]
[337522271,1725735041126,-500.0,0.00014794,2]
[337522272,1725735041137,-500.0,0.00014794,2]
[337522273,1725735041149,-500.0,0.00014794,2]
[337522274,1725735041159,-500.0,0.00014794,2]
[337522275,1725735041169,-435.17641276,0.00014794,2]
[337522276,1725735041179,-500.0,0.00014794,2]
[337522277,1725735041189,-500.0,0.00014794,2]
[337522278,1725735041198,-500.0,0.00014794,2]
[337522279,1725735041208,-500.0,0.00014794,2]
[337522280,1725735041219,-500.0,0.00014794,2]
[337522281,1725735041229,-500.0,0.00014794,2]
[337522282,1725735041240,-500.0,0.00014794,2]
[337522283,1725735041251,-500.0,0.00014794,2]
[337522284,1725735041262,-500.0,0.00014794,2]
[337522285,1725735041272,-211.01426387,0.00014794,2]
[337522286,1725735041283,-500.0,0.00014794,2]
[337522287,1725735041293,-500.0,0.00014794,2]
[337522288,1725735041304,-500.0,0.00014794,2]
[337522289,1725735041314,-500.0,0.00014794,2]
[337522290,1725735041323,-518.56602678,0.00014794,2]
[337522291,1725735041333,-500.0,0.00014794,2]
[337522292,1725735041344,-375.44,0.00014794,2]
[337522293,1725735041353,-369.79289257,0.00014794,2]
[337522294,1725735041362,-518.98664165,0.00014794,2]
[337522295,1725735041371,-520.62692133,0.00014794,2]
[337522296,1725735041381,-500.0,0.00014794,2]
[337522297,1725735041390,-500.0,0.00014794,2]
[337522298,1725735041399,-500.0,0.00014794,2]
[337522299,1725735041409,-632.59,0.00014794,2]
[337522300,1725735041419,-632.59,0.00014794,2]
[337522301,1725735041428,-500.0,0.00014794,2]
[337522302,1725735041437,-632.59,0.00014794,2]
[337522303,1725735041447,-500.0,0.00014794,2]
[337522304,1725735041456,-500.0,0.00014794,2]
[337522305,1725735041466,-500.0,0.00014794,2]
[337522306,1725735041476,-500.0,0.00014794,2]
[337522307,1725735041486,-500.0,0.00014794,2]
[337522308,1725735041498,-500.0,0.00014794,2]
[337522309,1725735041507,-500.0,0.00014794,2]
[337522310,1725735041517,-500.0,0.00014794,2]
[337522311,1725735041528,-500.0,0.00014794,2]
[337522312,1725735041539,-500.0,0.00014794,2]
[337522313,1725735041548,-1752.91,0.00014794,2]
[337522314,1725735041558,-500.0,0.00014794,2]
[337522315,1725735041570,-500.0,0.00014794,2]
[337522316,1725735041580,-1752.91,0.00014794,2]
[337522317,1725735041590,-500.0,0.00014794,2]
[337522318,1725735041603,-1752.91,0.00014794,2]
[337522319,1725735041613,-500.0,0.00014794,2]
[337522320,1725735041622,-500.0,0.00014794,2]
[337522321,1725735041632,-500.0,0.00014794,2]
[337522322,1725735041641,-500.0,0.00014794,2]
[337522323,1725735041650,-500.0,0.00014794,2]
[337522324,1725735041659,-500.0,0.00014794,2]
[337522325,1725735041668,-500.0,0.00014794,2]
[337522326,1725735041678,-290.44,0.00014794,2]
[337522327,1725735041687,-500.0,0.00014794,2]
[337522328,1725735041697,-500.0,0.00014794,2]
[337522329,1725735041709,-500.0,0.00014794,2]
[337522330,1725735041719,-500.0,0.00014794,2]
[337522331,1725735041728,-500.0,0.00014794,2]
[337522332,1725735041740,-500.0,0.00014794,2]
[337522333,1725735041749,-340.56,0.00014794,2]
[337522334,1725735041760,-527.07,0.00014794,2]
[337522335,1725735041770,-527.07,0.00014794,2]
[337522336,1725735041779,-527.07,0.00014794,2]
[337522337,1725735041789,-500.0,0.00014794,2]
[337522338,1725735041797,-500.0,0.00014794,2]
[337522339,1725735041808,-500.0,0.00014794,2]
[337522340,1725735041817,-500.0,0.00014794,2]
[337522341,1725735041827,-500.0,0.00014794,2]
[337522342,1725735041836,-1606.96,0.00014794,2]
[337522343,1725735041847,-1606.96,0.00014794,2]
[337522344,1725735041856,-1606.96,0.00014794,2]
[337522345,1725735041865,-500.0,0.00014794,2]
[337522346,1725735041874,-500.0,0.00014794,2]
[337522347,1725735041884,-558.43098381,0.00014794,2]
[337522348,1725735041893,-500.0,0.00014794,2]
[337522349,1725735041903,-500.0,0.00014794,2]
[337522350,1725735041913,-500.0,0.00014794,2]
[337522351,1725735041922,-500.0,0.00014794,2]
[337522352,1725735041931,-500.0,0.00014794,2]
[337522353,1725735041940,-1178.48,0.00014794,2]
[337522354,1725735041950,-1178.48,0.00014794,2]
[337522355,1725735041959,-1178.48,0.00014794,2]
[337522356,1725735041968,-500.0,0.00014794,2]
[337522357,1725735041977,-944.82,0.00014794,2]
[337522358,1725735041987,-944.82,0.00014794,2]
[337522359,1725735041996,-944.82,0.00014794,2]
[337522360,1725735042006,-395.48125893,0.00014794,2]
[337522361,1725735042015,-500.0,0.00014794,2]
[337522362,1725735042024,-500.0,0.00014794,2]
[337522363,1725735042034,-168.52213278,0.00014794,2]
[337522364,1725735042043,-500.0,0.00014794,2]
[337522365,1725735042052,-500.0,0.00014794,2]
[337522366,1725735042062,-504.58660583,0.00014794,2]
[337522367,1725735042072,-191.36,0.00014794,2]
[337522368,1725735042082,-500.0,0.00014794,2]
[337522369,1725735042091,-500.0,0.00014794,2]
[337522370,1725735042100,-500.0,0.00014794,2]
[337522371,1725735042110,-500.0,0.00014794,2]
[337522372,1725735042119,-500.0,0.00014794,2]
[337522373,1725735042129,-500.0,0.00014794,2]
[337522374,1725735042138,-500.0,0.00014794,2]
[337522375,1725735042152,-500.0,0.00014794,2]
[337522376,1725735042162,-500.0,0.00014794,2]
[337522377,1725735042171,-503.84443497,0.00014794,2]
[337522378,1725735042180,-500.0,0.00014794,2]
[337522379,1725735042189,-500.0,0.00014794,2]
[337522380,1725735042198,-500.0,0.00014794,2]
[337522381,1725735042207,-500.0,0.00014794,2]
[337522382,1725735042217,-500.0,0.00014794,2]
[337522383,1725735042227,-500.0,0.00014794,2]
[337522384,1725735042236,-500.0,0.00014794,2]
[337522385,1725735042246,-500.0,0.00014794,2]
[337522386,1725735042255,-500.0,0.00014794,2]
[337522387,1725735042265,-500.0,0.00014794,2]
[337522388,1725735042275,-500.0,0.00014794,2]
[337522389,1725735042284,-500.0,0.00014794,2]
[337522390,1725735042295,-500.0,0.00014794,2]
[337522391,1725735042305,-515.53963809,0.00014794,2]
[337522392,1725735042315,-1170.95,0.00014794,2]
[337522393,1725735042324,-1170.95,0.00014794,2]
[337522394,1725735042334,-1170.95,0.00014794,2]
[337522395,1725735042343,-500.0,0.00014794,2]
[337522396,1725735042352,-500.0,0.00014794,2]
[337522397,1725735042362,-500.0,0.00014794,2]
[337522398,1725735042371,-500.0,0.00014794,2]
[337522399,1725735042381,-500.0,0.00014794,2]
[337522400,1725735042390,-500.0,0.00014794,2]
[337522401,1725735042399,-500.0,0.00014794,2]
[337522402,1725735042408,-500.0,0.00014794,2]
[337522403,1725735042418,-500.0,0.00014794,2]
[337522404,1725735042427,-2806.11,0.00014794,2]
[337522405,1725735042436,-2806.11,0.00014794,2]
[337522406,1725735042446,-2806.11,0.00014794,2]
[337522407,1725735042455,-1319.31,0.00014794,2]
[337522408,1725735042464,-1319.31,0.00014794,2]
[337522409,1725735042474,-1319.31,0.00014794,2]
[337522410,1725735042483,-500.0,0.00014794,2]
[337522411,1725735042494,-500.0,0.00014794,2]
[337522412,1725735042504,-500.0,0.00014794,2]
[337522413,1725735042513,-582.06356053,0.00014794,2]
[337522414,1725735042523,-520.83722334,0.00014794,2]
[337522415,1725735042532,-500.0,0.00014794,2]
[337522416,1725735042542,-520.7316405,0.00014794,2]
[337522417,1725735042552,-500.0,0.00014794,2]
[337522418,1725735042561,-500.0,0.00014794,2]
[337522419,1725735042571,-500.0,0.00014794,2]
[337522420,1725735042580,-584.43888714,0.00014794,2]
[337522421,1725735042590,-707.83,0.00014794,2]
[337522422,1725735042600,-707.83,0.00014794,2]
[337522423,1725735042610,-707.83,0.00014794,2]
[337522424,1725735042620,-595.56378823,0.00014794,2]
[337522425,1725735042629,-500.0,0.00014794,2]
[337522426,1725735042639,-500.0,0.00014794,2]
[337522427,1725735042649,-500.0,0.00014794,2]
[337522428,1725735042658,-500.0,0.00014794,2]
[337522429,1725735042667,-500.0,0.00014794,2]
[337522430,1725735042678,-547.07,0.00014794,2]
[337522431,1725735042688,-611.26701891,0.00014794,2]
[337522432,1725735042698,-547.07,0.00014794,2]
[337522433,1725735042707,-547.07,0.00014794,2]
[337522434,1725735042717,-431.08403826,0.00014794,2]
[337522435,1725735042727,-500.0,0.00014794,2]
[337522436,1725735042736,-500.0,0.00014794,2]
[337522437,1725735042745,-500.0,0.00014794,2]
[337522438,1725735042755,-500.0,0.00014794,2]
[337522439,1725735042764,-527.5926744,0.00014794,2]
[337522440,1725735042774,-894.7,0.00014794,2]
[337522441,1725735042784,-894.7,0.00014794,2]
[337522442,1725735042793,-894.7,0.00014794,2]
[337522443,1725735042802,-500.0,0.00014794,2]
[337522444,1725735042828,-589.81,0.00014794,2]
[337522445,1725735042838,-589.81,0.00014794,2]
[337522446,1725735042848,-500.0,0.00014794,2]
[337522447,1725735042858,-589.81,0.00014794,2]
[337522448,1725735042867,-560.46656068,0.00014794,2]
[337522449,1725735042877,-552.02742985,0.00014794,2]
[337522450,1725735042886,-500.0,0.00014794,2]
[337522451,1725735042895,-500.0,0.00014794,2]
[337522452,1725735042905,-500.0,0.00014794,2]
[337522453,1725735042914,-500.0,0.00014794,2]
[337522454,1725735042923,-500.0,0.00014794,2]
[337522455,1725735042932,-500.0,0.00014794,2]
[337522456,1725735042942,-539.4092394,0.00014794,2]
[337522457,1725735042951,-1228.17,0.00014794,2]
[337522458,1725735042960,-1228.17,0.00014794,2]
[337522460,1725735042969,-1228.17,0.00014794,2]
[337522461,1725735042979,-500.0,0.00014794,2]
[337522462,1725735042988,-500.0,0.00014794,2]
[337522463,1725735042997,-500.0,0.00014794,2]
[337522464,1725735043006,-500.0,0.00014794,2]
[337522465,1725735043015,-500.0,0.00014794,2]
[337522466,1725735043024,-500.0,0.00014794,2]
[337522467,1725735043033,-500.0,0.00014794,2]
[337522468,1725735043042,-500.0,0.00014794,2]
[337522469,1725735043051,-500.0,0.00014794,2]
[337522470,1725735043060,-500.0,0.00014794,2]
[337522471,1725735043070,-500.0,0.00014794,2]
[337522472,1725735043079,-632.88058268,0.00014794,2]
[337522473,1725735043088,-500.0,0.00014794,2]
[337522475,1725735043097,-1109.35,0.00014794,2]
[337522476,1725735043106,-1109.35,0.00014794,2]
[337522477,1725735043115,-500.0,0.00014794,2]
[337522478,1725735043125,-1109.35,0.00014794,2]
[337522479,1725735043135,-402.64392012,0.00014794,2]
[337522480,1725735043147,-500.0,0.00014794,2]
[337522481,1725735043156,-500.0,0.00014794,2]
[337522482,1725735043166,-500.0,0.00014794,2]
[337522484,1725735043175,-500.0,0.00014794,2]
[337522485,1725735043185,-500.0,0.00014794,2]
[337522486,1725735043194,-1029.63,0.00014794,2]
[337522488,1725735043203,-1029.63,0.00014794,2]
[337522490,1725735043212,-531.9698398,0.00014794,2]
[337522492,1725735043223,-1029.63,0.00014794,2]
[337522493,1725735043233,-525.11772031,0.00014794,2]
[337522496,1725735043243,-500.0,0.00014794,2]
[337522497,1725735043254,-500.0,0.00014794,2]
[337522498,1725735043263,-582.03,0.00014794,2]
[337522499,1725735043274,-582.03,0.00014794,2]
[337522500,1725735043284,-582.03,0.00014794,2]
[337522501,1725735043295,-500.0,0.00014794,2]
[337522502,1725735043305,-500.0,0.00014794,2]
[337522503,1725735043317,-1456.05,0.00014794,2]
[337522504,1725735043328,-1456.05,0.00014794,2]
[337522505,1725735043338,-1456.05,0.00014794,2]
[337522506,1725735043349,-504.12978937,0.00014794,2]
[337522507,1725735043359,-507.36442755,0.00014794,2]
[337522508,1725735043368,-238.43651231,0.00014794,2]
[337522509,1725735043379,-500.0,0.00014794,2]
[337522510,1725735043389,-500.0,0.00014794,2]
[337522511,1725735043399,-500.0,0.00014794,2]
[337522512,1725735043409,-500.0,0.00014794,2]
[337522513,1725735043419,-500.0,0.00014794,2]
[337522514,1725735043429,-578.78,0.00014794,2]
[337522515,1725735043558,-578.78,0.00014794,2]
[337522516,1725735043569,-578.78,0.00014794,2]
[337522517,1725735043579,-500.0,0.00014794,2]
[337522518,1725735043589,-255.31857649,0.00014794,2]
[337522519,1725735043601,-500.0,0.00014794,2]
[337522520,1725735043610,-500.0,0.00014794,2]
[337522521,1725735043619,-500.0,0.00014794,2]
[337522522,1725735043628,-500.0,0.00014794,2]
[337522523,1725735043637,-500.0,0.00014794,2]
[337522524,1725735043646,-301.6,0.00014794,2]
[337522525,1725735043656,-500.0,0.00014794,2]
[337522526,1725735043665,-500.0,0.00014794,2]